Workbook

Sheet Sheet1
A1: Demonstration of peak sharpening by the odd-order derivative method. | R1: Tom O'Haver (toh@umd.edu), Version 5, July 2017
A2: In this demonstration, two overlapping Gaussians are simulated. Cells B4 - B6 control the peak width, noise, and relative height of peak 2. Adjust the width (B5) to change Rs (E6).
A3: Peak parameters | E3: Click buttons to change K1 and K2
A4: peak 2 | B4: 0.2 | D4: K1= | E4: 8761.387557 | J4: 0 | L4: The smooth function is defined by the 17 red coefficients in row 5, columns K through AA.
A5: Width | B5: 400 | D5: K2= | E5: 10220193.5 | J5: 0 | L5: -8 | M5: -7 | N5: -6 | O5: -5 | P5: -4 | Q5: -3 | R5: -2 | S5: -1 | T5: 0 | U5: 1 | V5: 2 | W5: 3 | X5: 4 | Y5: 5 | Z5: 6 | AA5: 7 | AB5: 8
A6: Noise | B6: 0 | D6: Rs= | E6: =500/(2*B5) -> 0.625 | I6: Smooth coefficients ----> | L6: 1 | M6: 2 | N6: 3 | O6: 4 | P6: 5 | Q6: 6 | R6: 7 | S6: 8 | T6: 9 | U6: 8 | V6: 7 | W6: 6 | X6: 5 | Y6: 4 | Z6: 3 | AA6: 2 | AB6: 1
A7: Simulated data | C7: 1st | E7: Smoothed | F7: 2nd | G7: Smoothed | H7: 4th | I7: Smoothed | J7: Sharpened
A8: X | B8: Y | C8: derivative | E8: 1st deriv. | F8: derivative | G8: 2nd deriv. | H8: derivative | I8: 4th deriv. | J8: Signal
A9: 0 | B9: =EXP(-1*(($A9-1000)/(0.60056*$B$5))^2)+$B$4*EXP(-1*(($A9-1500)/(0.60056*$B$5))^2)+$B$6*(RAND()-RAND()+RAND()-RAND()) -> 2.980025109e-08 | C9: 0 | E9: 0 | G9: 0 | L9: =G9*$E$4 -> 0 | M9: =I9*$E$5 -> 0
A10: 10 | B10: =EXP(-1*(($A10-1000)/(0.60056*$B$5))^2)+$B$4*EXP(-1*(($A10-1500)/(0.60056*$B$5))^2)+$B$6*(RAND()-RAND()+RAND()-RAND()) -> 4.207101084e-08 | C10: =(B10-B9)/(A10-A9) -> 1.227075975e-09 | E10: 0 | F10: =(E11-E9)/(A11-A9) -> 0 | G10: 0 | H10: =(G11-G9)/(A11-A9) -> 0 | L10: 0 | M10: 0
A11: 20 | B11: 5.918897435e-08 | C11: =(B11-B10)/(A11-A10) -> 1.711796351e-09 | E11: 0 | F11: =(E12-E10)/(A12-A10) -> 0 | G11: 0 | H11: 0 | L11: 0 | M11: 0
A12: 30 | B12: 8.298383969e-08 | C12: 2.379486534e-09 | E12: 0 | F12: 0 | G12: 0 | H12: 0 | L12: 0 | M12: 0
A13: 40 | B13: 1.159420784e-07 | C13: 3.295823872e-09 | E13: 0 | F13: 0 | G13: 0 | H13: 0 | L13: 0 | M13: 0
A14: 50 | B14: 1.614297153e-07 | C14: 4.54876369e-09 | E14: 0 | F14: 0 | G14: 0 | H14: 0 | L14: 0 | M14: 0
A15: 60 | B15: 2.239859228e-07 | C15: 6.255620746e-09 | E15: 0 | F15: =-(E16-E14)/(A16-A14) -> 0 | G15: 0 | H15: 0 | L15: 0 | M15: 0
A16: 70 | B16: 3.097082768e-07 | C16: 8.572235401e-09 | E16: 0 | F16: =-(E17-E15)/(A17-A15) -> 0 | G16: 0 | H16: -5.290069472e-11 | L16: 0 | M16: 0
A17: 80 | B17: 4.267561056e-07 | C17: 1.170478288e-08 | E17: 0 | F17: =-(E18-E16)/(A18-A16) -> -1.378472327e-09 | G17: =(F9*$L$6+F10*$M$6+F11*$N$6+F12*$O$6+F13*$P$6+F14*$Q$6+F15*$R$6+F16*$S$6+F17*$T$6+F18*$U$6+F19*$V$6+F20*$W$6+F21*$X$6+F22*$Y$6+F23*$Z$6+F24*$AA$6+F25*$AB$6)/SUM($L$6:$AB$6) -> -1.058013894e-09 | H17: -6.951201796e-11 | I17: =(H9*$L$6+H10*$M$6+H11*$N$6+H12*$O$6+H13*$P$6+H14*$Q$6+H15*$R$6+H16*$S$6+H17*$T$6+H18*$U$6+H19*$V$6+H20*$W$6+H21*$X$6+H22*$Y$6+H23*$Z$6+H24*$AA$6+H25*$AB$6)/SUM($L$6:$AB$6) -> -3.778722178e-11 | L17: -9.26966977e-06 | M17: -0.0003861927184
A18: 90 | B18: 5.860052659e-07 | C18: 1.592491604e-08 | E18: =(C10*$L$6+C11*$M$6+C12*$N$6+C13*$O$6+C14*$P$6+C15*$Q$6+C16*$R$6+C17*$S$6+C18*$T$6+C19*$U$6+C20*$V$6+C21*$W$6+C22*$X$6+C23*$Y$6+C24*$Z$6+C25*$AA$6+C26*$AB$6)/SUM($L$6:$AB$6) -> 2.756944653e-08 | F18: =-(E19-E17)/(A19-A17) -> -1.845183404e-09 | G18: -1.390240359e-09 | H18: -3.642423172e-11 | I18: -4.074480229e-11 | L18: -1.218043458e-05 | M18: -0.0004164197635
A19: 100 | B19: 8.018961679e-07 | C19: 2.15890902e-08 | E19: 3.690366808e-08 | F19: =-(E20-E18)/(A20-A18) -> -1.082867278e-09 | G19: -1.786498529e-09 | H19: -4.530032638e-11 | I19: -4.238007384e-11 | L19: -1.565220598e-05 | M19: -0.0004331325552
A20: 110 | B20: 1.093527229e-06 | C20: 2.91631061e-08 | E20: 4.922679208e-08 | F20: =-(E21-E19)/(A21-A19) -> -1.426665144e-09 | G20: -2.296246887e-09 | H20: -5.815187584e-11 | I20: -4.238836302e-11 | L20: -2.01183089e-05 | M20: -0.0004332172722
A21: 120 | B21: 1.486058509e-06 | C21: 3.925312805e-08 | E21: 6.543697095e-08 | F21: -1.872806994e-09 | G21: -2.949536046e-09 | H21: -7.4369684e-11 | I21: -4.034066829e-11 | L21: -2.584202841e-05 | M21: -0.0004122894358
A22: 130 | B22: 2.012505428e-06 | C22: 5.264469181e-08 | E22: 8.668293196e-08 | F22: -2.449544852e-09 | G22: -3.783640567e-09 | H22: -9.475260305e-11 | I22: -3.570357247e-11 | L22: -3.314994138e-05 | M22: -0.0003648974192
A23: 140 | B23: 2.716020576e-06 | C23: 7.035151481e-08 | E23: 1.14427868e-07 | F23: -3.192245606e-09 | G23: -4.844588107e-09 | H23: -1.20265803e-10 | I23: -2.781624923e-11 | L23: -4.244531396e-05 | M23: -0.0002842874495
A24: 150 | B24: 3.652783186e-06 | C24: 9.367626104e-08 | E24: 1.505278441e-07 | F24: -4.144982733e-09 | G24: -6.188956627e-09 | H24: =-(G25-2*G24+G23)/(A25-A23) -> 1.76323602e-11 | I24: -1.58630467e-11 | L24: -5.422384758e-05 | M24: -0.0001621234067
A25: 160 | B25: 4.895641171e-06 | C25: 1.242857985e-07 | E25: 1.973275227e-07 | F25: -5.362428814e-09 | G25: -7.88597235e-09 | H25: =-(G26-2*G25+G24)/(A26-A24) -> 2.184766928e-11 | I25: -3.031121796e-12 | L25: -6.909206002e-05 | M25: -3.097865128e-05
A26: 170 | B26: 6.538680333e-06 | C26: 1.643039162e-07 | E26: =(C18*$L$6+C19*$M$6+C20*$N$6+C21*$O$6+C22*$P$6+C23*$Q$6+C24*$R$6+C25*$S$6+C26*$T$6+C27*$U$6+C28*$V$6+C29*$W$6+C30*$X$6+C31*$Y$6+C32*$Z$6+C33*$AA$6+C34*$AB$6)/SUM($L$6:$AB$6) -> 2.577764204e-07 | F26: -6.912091141e-09 | G26: -1.001994146e-08 | H26: =-(G27-2*G26+G25)/(A27-A25) -> 2.780776097e-11 | I26: 1.017628808e-11 | L26: -8.778859042e-05 | M26: 0.0001040036332
A27: 180 | B27: 8.702929736e-06 | C27: 2.164249403e-07 | E27: 3.355693455e-07 | F27: -8.876934923e-09 | G27: -1.271006579e-08 | H27: =-(G28-2*G27+G26)/(A28-A26) -> 3.425856151e-11 | I27: 2.370148075e-11 | J27: =B27+$E$4*G27+$E$5*I27 -> 0.0001395788369 | L27: -0.0001113578122 | M27: 0.0002422337194
A28: 190 | B28: 1.154345177e-05 | C28: 2.84052203e-07 | E28: 4.353151188e-07 | F28: -1.135843979e-08 | G28: =(F20*$L$6+F21*$M$6+F22*$N$6+F23*$O$6+F24*$P$6+F25*$Q$6+F26*$R$6+F27*$S$6+F28*$T$6+F29*$U$6+F30*$V$6+F31*$W$6+F32*$X$6+F33*$Y$6+F34*$Z$6+F35*$AA$6+F36*$AB$6)/SUM($L$6:$AB$6) -> -1.608536135e-08 | H28: =-(G29-2*G28+G27)/(A29-A27) -> 4.118491966e-11 | I28: =(H20*$L$6+H21*$M$6+H22*$N$6+H23*$O$6+H24*$P$6+H25*$Q$6+H26*$R$6+H27*$S$6+H28*$T$6+H29*$U$6+H30*$V$6+H31*$W$6+H32*$X$6+H33*$Y$6+H34*$Z$6+H35*$AA$6+H36*$AB$6)/SUM($L$6:$AB$6) -> 3.813337217e-11 | J28: 0.0002603438094 | L28: -0.0001409300848 | M28: 0.0003897304424
A29: 200 | B29: 1.525811037e-05 | C29: 3.714658602e-07 | E29: 5.627381412e-07 | F29: -1.448013518e-08 | G29: -2.02843553e-08 | H29: 5.023094528e-11 | I29: 5.358087919e-11 | J29: 0.0003851459655 | L29: -0.0001777190981 | M29: 0.0005476069532
A30: 210 | B30: 2.009836159e-05 | C30: 4.840251225e-07 | E30: 7.249178223e-07 | F30: -1.839165831e-08 | G30: -2.548796816e-08 | H30: 6.10021197e-11 | I30: 7.010594197e-11 | J30: 0.0005132846869 | L30: -0.0002233099671 | M30: 0.0007164962924
A31: 220 | B31: 2.638246696e-05 | C31: 6.284105364e-07 | E31: 9.305713075e-07 | F31: -2.327337425e-08 | G31: -3.191162341e-08 | H31: 7.376321529e-11 | I31: 8.774524692e-11 | J31: 0.0006435657689 | L31: -0.0002795901003 | M31: 0.0008967734022
A32: 230 | B32: 3.451159207e-05 | C32: 8.129125111e-07 | E32: 1.190385307e-06 | F32: -2.934159057e-08 | G32: -3.981054297e-08 | H32: 8.880461624e-11 | I32: 1.064979548e-10 | J32: 0.000774145702 | L32: -0.0003487955958 | M32: 0.001088429706
A33: 240 | B33: 4.498932009e-05 | C33: 1.047772803e-06 | E33: 1.517403119e-06 | F33: -3.685438898e-08 | G33: -4.948555485e-08 | H33: 1.064412327e-10 | I33: 1.263102097e-10 | J33: 0.0009023419793 | L33: -0.0004335621245 | M33: 0.001290914784
A34: 250 | B34: 5.84451812e-05 | C34: 1.345586111e-06 | E34: 1.927473087e-06 | F34: -4.611808187e-08 | G34: -6.128939139e-08 | H34: 1.270103159e-10 | I34: 1.49150951e-10 | J34: 0.00104581665 | L34: -0.000536980111 | M34: 0.00152435158
A35: 260 | B35: 7.566287391e-05 | C35: 1.72176927e-06 | E35: 2.439764756e-06 | F35: -5.749428273e-08 | G35: -7.563343424e-08 | H35: 1.508679464e-10 | I35: 1.753375499e-10 | J35: 0.001204992732 | L35: -0.0006626538296 | M35: 0.001791983688
A36: 270 | B36: 9.761393061e-05 | C36: 2.19510567e-06 | E36: 3.077358742e-06 | F36: -7.140755609e-08 | G36: -9.299483602e-08 | H36: 1.783839541e-10 | I36: 2.051994225e-10 | J36: 0.001380027936 | L36: -0.0008147637991 | M36: 0.002097177804
A37: 280 | B37: 0.0001254976555 | C37: 2.78837249e-06 | E37: 3.867915878e-06 | F37: -8.835358214e-08 | G37: -1.139239169e-07 | H37: 2.09935029e-10 | I37: 2.390522166e-10 | J37: 0.001570525978 | L37: -0.0009981315878 | M37: 0.00244315991
A38: 290 | B38: 0.0001607882352 | C38: 3.529057972e-06 | E38: 4.844430385e-06 | F38: -1.089077366e-07 | G38: -1.390516983e-07 | H38: 2.458957825e-10 | I38: 2.771851129e-10 | J38: 0.001775387905 | L38: -0.001218285819 | M38: 0.002832885489
A39: 300 | B39: 0.0002052899877 | C39: 4.450175242e-06 | E39: 6.046070609e-06 | F39: -1.337339435e-07 | G39: -1.690973954e-07 | H39: 2.866275397e-10 | I39: 3.198662845e-10 | J39: 0.001992857493 | L39: -0.001481527816 | M39: 0.003269095321
A40: 310 | B40: 0.0002612017684 | C40: 5.591178071e-06 | E40: 7.519109255e-06 | F40: -1.635936124e-07 | G40: -2.048756433e-07 | H40: 3.324646732e-10 | I40: 3.673207609e-10 | J40: 0.002220296109 | L40: -0.001794994912 | M40: 0.003754089252
A41: 320 | B41: 0.0003311915908 | C41: 6.998982249e-06 | E41: 9.317942858e-06 | F41: -1.993544138e-07 | G41: -2.473031847e-07 | H41: 3.836983359e-10 | I41: 4.197139712e-10 | J41: 0.002454030546 | L41: -0.002166719045 | M41: 0.004289558
A42: 330 | B42: 0.0004184825313 | C42: 8.729094042e-06 | E42: 1.150619753e-05 | F42: -2.419985922e-07 | G42: -2.974046927e-07 | H42: 4.405575156e-10 | I42: 4.771331872e-10 | J42: 0.002689198255 | L42: -0.002605677774 | M42: 0.004876393498
A43: 340 | B43: 0.0005269509732 | C43: 1.084684419e-05 | E43: 1.41579147e-05 | F43: -2.926304467e-07 | G43: -3.563173511e-07 | H43: 5.031874199e-10 | I43: 5.39567e-10 | J43: 0.002919595712 | L43: -0.003121834406 | M43: 0.005514479146
A44: 350 | B44: 0.0006612381958 | C44: 1.342872226e-05 | E44: 1.735880647e-05 | F44: -3.524825474e-07 | G44: -4.252937579e-07 | H44: 5.716253045e-10 | I44: 6.06883065e-10 | J44: 0.003137537113 | L44: -0.003726163438 | M44: 0.006202462356
A45: 360 | B45: 0.0008268762118 | C45: 1.65638016e-05 | E45: 2.120756565e-05 | F45: -4.229201829e-07 | G45: -5.057026708e-07 | H45: 6.457739853e-10 | I45: 6.788044699e-10 | J45: 0.003333732156 | L45: -0.004430657087 | M45: 0.006937513031
A46: 370 | B46: 0.00103042861 | C46: 2.035523978e-05 | E46: 2.581721012e-05 | F46: -5.054434715e-07 | G46: -5.990270633e-07 | H46: 7.253734199e-10 | I46: 7.548852097e-10 | J46: 0.003497193264 | L46: -0.005248308259 | M46: 0.007715072913
A47: 380 | B47: 0.001279646942 | C47: 2.492183323e-05 | E47: 3.131643508e-05 | F47: -6.016865056e-07 | G47: -7.068589243e-07 | H47: 8.099709105e-10 | I47: 8.34485394e-10 | J47: 0.003615184158 | L47: -0.006193064984 | M47: 0.008528602199
A48: 390 | B48: 0.001583642917 | C48: 3.039959753e-05 | E48: 3.785094024e-05 | F48: -7.13412843e-07 | G48: -8.308902035e-07 | H48: 8.988906563e-10 | I48: 9.167469593e-10 | J48: 0.003673223141 | L48: -0.00727975109 | M48: 0.009369331314
A49: 400 | B49: 0.001953076287 | C49: 3.694333702e-05 | E49: 4.558469194e-05 | F49: -8.425066211e-07 | G49: -9.728992958e-07 | H49: 9.912035769e-10 | I49: 1.000570803e-09 | J49: 0.003655155719 | L49: -0.008523947784 | M49: 0.01022602722
A50: 410 | B50: 0.002400357876 | C50: 4.472815887e-05 | E50: 5.470107266e-05 | F50: -9.909585413e-07 | G50: -1.13473246e-06 | H50: 1.085698517e-09 | I50: 1.084596402e-09 | J50: 0.003543312119 | L50: -0.009941830852 | M50: 0.0110847851
A51: 420 | B51: 0.002939866649 | C51: 5.395087729e-05 | E51: 6.540386277e-05 | F51: -1.160845971e-06 | G51: -1.318279594e-06 | H51: 1.180856136e-09 | I51: 1.167185102e-09 | J51: 0.003318765811 | L51: -0.01154995843 | M51: 0.01192885759
A52: 430 | B52: 0.003588179095 | C52: 6.483124462e-05 | E52: 7.791799207e-05 | F52: -1.354306432e-06 | G52: -1.525443851e-06 | H52: 1.274826956e-09 | I52: 1.246408379e-09 | J52: 0.002961709136 | L52: -0.01336500477 | M52: 0.01273853481
A53: 440 | B53: 0.004364308456 | C53: 7.761293608e-05 | E53: 9.24899914e-05 | F53: -1.573503805e-06 | G53: -1.758104647e-06 | H53: 1.365415196e-09 | I53: 1.320042443e-09 | J53: 0.002451961471 | L53: -0.01540343618 | M53: 0.01349108919
A54: 450 | B54: 0.005289950518 | C54: 9.256420615e-05 | E54: 0.0001093880682 | F54: -1.820586666e-06 | G54: -2.018073747e-06 | H54: 1.450070137e-09 | I54: 1.3855706e-09 | J54: 0.001769623946 | L54: -0.01768112621 | M54: 0.01416079964
A55: 460 | B55: 0.006389731778 | C55: 0.0001099781261 | E55: 0.0001289017247 | F55: -2.097638301e-06 | G55: -2.30704425e-06 | H55: 1.52588682e-09 | I55: 1.440194785e-09 | J55: 0.0008958923779 | L55: -0.02021290878 | M55: 0.01471906938
A56: 470 | B56: 0.007691454825 | C56: 0.0001301723047 | E56: 0.0001513408342 | F56: -2.40661815e-06 | G56: -2.626532489e-06 | H56: 1.589617891e-09 | I56: 1.480857584e-09 | J56: -0.0001859631805 | L56: -0.02301206906 | M56: 0.01513465106
A57: 480 | B57: 0.009226334727 | C57: 0.0001534879902 | E57: 0.0001770340877 | F57: -2.749294606e-06 | G57: -2.977813086e-06 | H57: 1.637698329e-09 | I57: 1.504275976e-09 | J57: -0.001489448236 | L57: -0.02608977451 | M57: 0.01537399155
A58: 490 | B58: 0.01102921919 | C58: 0.0001802884461 | E58: 0.0002063267263 | F58: -3.127169424e-06 | G58: -3.361847649e-06 | H58: 1.66628465e-09 | I58: 1.506987773e-09 | J58: -0.003023524336 | L58: -0.02945445016 | M58: 0.01540170664
A59: 500 | B59: 0.01313878415 | C59: 0.000210956496 | E59: 0.0002395774762 | F59: -3.541394267e-06 | G59: -3.779207906e-06 | H59: 1.671309905e-09 | I59: 1.485411497e-09 | J59: -0.004791128042 | L59: -0.03311110512 | M59: 0.01518119293
A60: 510 | B60: 0.0155976955 | C60: 0.0002458911357 | E60: 0.0002771546117 | F60: -3.99268029e-06 | G60: -4.22999436e-06 | H60: 1.648555482e-09 | I60: 1.435920054e-09 | J60: -0.00678754365 | L60: -0.03706061995 | M60: 0.0146753808
A61: 520 | B61: 0.01845272667 | C61: 0.000285503117 | E61: 0.000319431082 | F61: -4.481202086e-06 | G61: -4.713751925e-06 | H61: 1.5937402e-09 | I61: 1.354928121e-09 | J61: -0.008998653207 | L61: -0.04129900746 | M61: 0.01384762757
A62: 530 | B62: 0.02175482091 | C62: 0.0003302094232 | E62: 0.0003667786534 | F62: -5.006497681e-06 | G62: -5.229384293e-06 | H62: 1.502626712e-09 | I62: 1.238992702e-09 | J62: -0.01139909641 | L62: -0.04581666247 | M62: 0.01266274516
A63: 540 | B63: 0.02555908662 | C63: 0.0003804265712 | E63: 0.0004195610356 | F63: -5.567366771e-06 | G63: -5.775069195e-06 | H63: 1.371144487e-09 | I63: 1.084925685e-09 | J63: -0.01395038234 | L63: -0.05059761939 | M63: 0.01108815043
A64: 550 | B64: 0.02992471363 | C64: 0.0004365627011 | E64: 0.0004781259888 | F64: -6.16176978e-06 | G64: -6.348176988e-06 | H64: 1.195527996e-09 | I64: 8.899166677e-10 | J64: -0.01659900469 | L64: -0.05561883887 | M64: 0.009095120542
A65: 560 | B65: 0.03491479805 | C65: 0.0004990084419 | E65: 0.0005427964312 | F65: -6.786730777e-06 | G65: -6.94519534e-06 | H65: 9.724678419e-10 | I65: 6.5166366e-10 | J65: -0.01927462128 | L65: -0.06084954803 | M65: 0.006660128702
A66: 570 | B66: 0.04059606381 | C66: 0.0005681265761 | E66: 0.0006138606043 | F66: -7.438247662e-06 | G66: -7.561663049e-06 | H66: 6.992718097e-10 | I66: 3.68508614e-10 | J66: -0.02188836739 | L66: -0.06625066054 | M66: 0.003766229341
A67: 580 | B67: 0.04703846949 | C67: 0.0006442405682 | E67: 0.0006915613845 | F67: -8.11121336e-06 | G67: -8.192116194e-06 | H67: 3.740319045e-10 | I67: 3.957413009e-11 | J67: -0.02433138012 | L67: -0.07177430488 | M67: 0.0004044552671
A68: 590 | B68: 0.05431469014 | C68: 0.0007276220644 | E68: 0.0007760848715 | F68: -8.799352039e-06 | G68: -8.830049977e-06 | H68: -4.207342442e-12 | I68: -3.351029119e-10 | J68: -0.02647361646 | L68: -0.07736348999 | M68: -0.003424816602
A69: 600 | B69: 0.06249946535 | C69: 0.000818477521 | E69: 0.0008675484252 | F69: -9.49517449e-06 | G69: -9.467899614e-06 | H69: -4.352847892e-10 | I69: -7.544455343e-10 | J69: -0.02816305186 | L69: -0.08295193786 | M69: -0.007710579345
A70: 610 | B70: 0.07166880706 | C70: 0.0009169341717 | E70: 0.0009659883613 | F70: -1.018995686e-05 | G70: -1.009704355e-05 | H70: -9.177689505e-10 | I70: -1.216223781e-09 | J70: -0.02922534708 | L70: -0.08846411176 | M70: -0.01243004238
A71: 620 | B71: 0.08189906299 | C71: 0.001023025592 | E71: 0.001071347563 | F71: -1.087374683e-05 | G71: -1.070783212e-05 | H71: -1.448821242e-09 | I71: -1.716960142e-09 | J71: -0.02946406896 | L71: -0.09381546706 | M71: -0.01754766489
A72: 630 | B72: 0.09326583478 | C72: 0.00113667718 | E72: 0.001183463298 | F72: -1.153540095e-05 | G72: -1.128964425e-05 | H72: -2.024083119e-09 | I72: -2.251858708e-09 | J72: -0.02866154563 | L72: -0.09891294867 | M72: -0.02301443173
A73: 640 | B73: 0.1058427539 | C73: 0.001257691907 | E73: 0.001302055581 | F73: -1.216265661e-05 | G73: -1.183097473e-05 | H73: -2.637594082e-09 | I73: -2.814763362e-09 | J73: -0.02658042712 | L73: =G73*$E$4 -> -0.1036557548 | M73: =I73*$E$5 -> -0.02876742622
A74: 650 | B74: =EXP(-1*(($A74-1000)/(0.60056*$B$5))^2)+$B$4*EXP(-1*(($A74-1500)/(0.60056*$B$5))^2)+$B$6*(RAND()-RAND()+RAND()-RAND()) -> 0.1197001215 | C74: 0.001385736764 | E74: 0.00142671643 | F74: -1.274224131e-05 | G74: -1.231955332e-05 | H74: -3.281747312e-09 | I74: -3.398149943e-09 | J74: -0.02296600963 | L74: -0.1079363812 | M74: -0.03472974996
A75: 660 | B75: 0.1349034248 | C75: =(B75-B74)/(A75-A74) -> 0.00152033033 | E75: 0.001556900408 | F75: -1.326002105e-05 | G75: -1.274249697e-05 | H75: -3.947289181e-09 | I75: -3.993156746e-09 | J75: -0.01754936419 | L75: -0.1116419544 | M75: -0.04081083462
A76: 670 | B76: 0.1515117443 | C76: 0.001660831953 | E76: 0.001691916851 | F76: -1.370118898e-05 | G76: -1.308649483e-05 | H76: -4.623368043e-09 | I76: -4.589656891e-09 | J76: -0.01005129016 | L76: -0.114655853 | M76: -0.04690718152
A77: 680 | B77: 0.1695760746 | C77: 0.00180643303 | E77: 0.001830924187 | F77: -1.405049392e-05 | G77: -1.333802533e-05 | H77: -5.297636605e-09 | I77: -5.176375038e-09 | J77: -0.0001870890615 | L77: -0.1168596092 | M77: -0.05290355451
A78: 690 | B78: 0.1891375834 | C78: 0.00195615088 | E78: 0.001972926729 | F78: -1.429250733e-05 | G78: -1.34836031e-05 | H78: -5.956410663e-09 | I78: -5.741049668e-09 | J78: 0.01232787249 | L78: -0.1181350724 | M78: -0.0586746385
A79: 700 | B79: 0.2102258404 | C79: 0.002108825699 | E79: 0.002116774334 | F79: -1.441192594e-05 | G79: -1.351005266e-05 | H79: -6.584885324e-09 | I79: -6.270640687e-09 | J79: 0.02777187198 | L79: -0.1183668072 | M79: -0.06408716119
A80: 710 | B80: 0.2328570507 | C80: 0.002263121032 | E80: 0.002261165248 | F80: -1.439390557e-05 | G80: -1.340480451e-05 | H80: -7.167407809e-09 | I80: -6.751580508e-09 | J80: 0.0464099041 | L80: -0.1174446874 | M80: -0.06900245922
A81: 720 | B81: 0.2570323326 | C81: 0.002417528185 | E81: 0.002404652445 | F81: -1.422442047e-05 | G81: -1.31562082e-05 | H81: -7.687803832e-09 | I81: -7.170065083e-09 | J81: 0.0684862412 | L81: -0.1152666388 | M81: -0.07327945255
A82: 730 | B82: 0.2827360815 | C82: 0.002570374895 | E82: 0.002545653658 | F82: -1.389064103e-05 | G82: -1.275385582e-05 | H82: -8.129752254e-09 | I82: -7.512379616e-09 | J82: 0.09421663455 | L82: -0.1117414737 | M82: -0.07677797332
A83: 740 | B83: 0.3099344667 | C83: 0.002719838513 | E83: 0.002682465266 | F83: -1.338132119e-05 | G83: -1.218890839e-05 | H83: -8.47720048e-09 | I83: -7.765251988e-09 | J83: 0.1237803385 | L83: -0.1067917503 | M83: -0.07936237789
A84: 750 | B84: 0.3385741051 | C84: 0.002863963838 | E84: 0.002813280082 | F84: =-(E85-E83)/(A85-A83) -> -1.268718597e-05 | G84: -1.145441695e-05 | H84: -8.714810833e-09 | I84: -7.916225338e-09 | J84: 0.1573121641 | L84: -0.1003565862 | M84: -0.08090535473
A85: 760 | B85: 0.3685809614 | C85: 0.003000685631 | E85: 0.002936208985 | F85: -1.180130837e-05 | G85: -1.05456293e-05 | H85: -8.828426146e-09 | I85: -7.954039804e-09 | J85: 0.1948947901 | L85: -0.09239434534 | M85: -0.0812918259
A86: 770 | B86: 0.3998595183 | C86: 0.003127855696 | E86: 0.003049306249 | F86: -1.071946449e-05 | G86: -9.460273124e-06 | H86: -8.80554104e-09 | I86: -7.8690123e-09 | J86: 0.2365515707 | L86: -0.08288511923 | M86: -0.08042282835
A87: 780 | B87: 0.432292261 | C87: 0.003243274271 | E87: 0.003150598275 | F87: -9.440454898e-06 | G87: -8.198806127e-06 | H87: -8.635764027e-09 | I87: -7.653402304e-09 | J87: 0.2822400906 | L87: -0.07183291798 | M87: -0.07821925248
A88: 790 | B88: 0.4657395145 | C88: 0.003344725347 | E88: 0.003238115347 | F88: -7.966380797e-06 | G88: -6.764623848e-06 | H88: -8.31125464e-09 | I88: -7.301751221e-09 | J88: 0.3318467129 | L88: -0.05926749121 | M88: -0.07462531037
A89: 800 | B89: 0.5000396679 | C89: 0.003430015341 | E89: 0.003309925891 | F89: -6.302863652e-06 | G89: -5.164216477e-06 | H89: -7.827119456e-09 | I89: -6.811182805e-09 | J89: 0.3851823597 | L89: -0.04524570198 | M89: -0.06961160622
A90: 810 | B90: 0.5350098125 | C90: 0.003497014462 | E90: =(C82*$L$6+C83*$M$6+C84*$N$6+C85*$O$6+C86*$P$6+C87*$Q$6+C88*$R$6+C89*$S$6+C90*$T$6+C91*$U$6+C92*$V$6+C93*$W$6+C94*$X$6+C95*$Y$6+C96*$Z$6+C97*$AA$6+C98*$AB$6)/SUM($L$6:$AB$6) -> 0.00336417262 | F90: -4.459197783e-06 | G90: -3.407266717e-06 | H90: -7.181751132e-09 | I90: -6.181652575e-09 | J90: 0.4419797429 | L90: -0.02985238422 | M90: -0.06317768546
A91: 820 | B91: 0.5704468118 | C91: 0.003543699925 | E91: 0.003399109847 | F91: -2.448426801e-06 | G91: -1.506681935e-06 | H91: -6.377095429e-09 | I91: -5.41613506e-09 | J91: =B91+$E$4*G91+$E$5*I91 -> 0.5018922391 | L91: -0.01320062435 | M91: -0.05535394833
A92: 830 | B92: 0.6061288126 | C92: 0.003568200084 | E92: 0.003413141156 | F92: -2.873363028e-07 | G92: =(F84*$L$6+F85*$M$6+F86*$N$6+F87*$O$6+F88*$P$6+F89*$Q$6+F90*$R$6+F91*$S$6+F92*$T$6+F93*$U$6+F94*$V$6+F95*$W$6+F96*$X$6+F97*$Y$6+F98*$Z$6+F99*$AA$6+F100*$AB$6)/SUM($L$6:$AB$6) -> 5.214447567e-07 | H92: =-(G93-2*G92+G91)/(A93-A91) -> -5.418832771e-09 | I92: =(H84*$L$6+H85*$M$6+H86*$N$6+H87*$O$6+H88*$P$6+H89*$Q$6+H90*$R$6+H91*$S$6+H92*$T$6+H93*$U$6+H94*$V$6+H95*$W$6+H96*$X$6+H97*$Y$6+H98*$Z$6+H99*$AA$6+H100*$AB$6)/SUM($L$6:$AB$6) -> -4.520739076e-09 | J92: 0.5644945641 | L92: 0.004568579603 | M92: -0.04620282811
A93: 840 | B93: 0.6418171972 | C93: 0.003568838454 | E93: 0.003404856573 | F93: 2.003642669e-06 | G93: 2.657948103e-06 | H93: -4.316462982e-09 | I93: -3.504743086e-09 | J93: 0.6292853581 | L93: 0.02328731344 | M93: -0.0358191525
A94: 850 | B94: 0.6772589622 | C94: 0.003544176501 | E94: 0.003373068303 | F94: 4.400622594e-06 | G94: 4.88078071e-06 | H94: -3.083284642e-09 | I94: -2.380544921e-09 | J94: 0.6956917438 | L94: 0.04276241138 | M94: -0.02432962973
A95: 860 | B95: 0.7121895031 | C95: 0.003493054087 | E95: 0.003316844121 | F95: 6.876541414e-06 | G95: 7.165279009e-06 | H95: -1.736263656e-09 | I95: -1.163522718e-09 | J95: 0.7630758621 | L95: 0.06277778635 | M95: -0.01189142732
A96: 870 | B96: 0.746335767 | C96: 0.003414626392 | E96: 0.003235537474 | F96: 9.401535259e-06 | G96: 9.484502581e-06 | H96: -2.957893135e-10 | I96: 1.281932454e-10 | J96: 0.8307433297 | L96: 0.0830974029 | M96: 0.001310159773
A97: 880 | B97: 0.7794197292 | C97: 0.003308396222 | E97: 0.003128813416 | F97: 1.194339686e-05 | G97: 1.180964194e-05 | H97: 1.214680066e-09 | I97: 1.474035143e-09 | J97: 0.8979535035 | L97: 0.1034688499 | M97: 0.01506492439
A98: 890 | B98: 0.8111621357 | C98: 0.003174240647 | E98: 0.002996669537 | F98: 1.446811178e-05 | G98: 1.41104877e-05 | H98: 2.769075782e-09 | I98: 2.851392922e-09 | J98: 0.9639313744 | L98: 0.1236274513 | M98: 0.0291417874
A99: 900 | B99: 0.841286446 | C99: 0.003012431035 | E99: 0.00283945118 | F99: 1.694046173e-05 | G99: 1.635595194e-05 | H99: 4.339271651e-09 | I99: 4.236081701e-09 | J99: 1.027880854 | L99: 0.1433008338 | M99: 0.04329357466
A100: 910 | B100: 0.8695229027 | C100: 0.002823645668 | E100: 0.002657860302 | F100: 1.932468203e-05 | G100: 1.851463075e-05 | H100: 5.895717396e-09 | I100: 5.60286985e-09 | J100: 1.088999172 | L100: 0.1622138554 | M100: 0.05726241401
A101: 920 | B101: 0.8956126461 | C101: 0.002608974336 | E101: 0.002452957539 | F101: 2.158515768e-05 | G101: 2.055539521e-05 | H101: 7.408135412e-09 | I101: 6.926053877e-09 | J101: 1.146492041 | L101: 0.1800937838 | M101: 0.07078561081
A102: 930 | B102: 0.9193117906 | C102: 0.002369914454 | E102: 0.002226157149 | F102: 2.368714134e-05 | G102: 2.244799696e-05 | H102: 8.846260994e-09 | I102: 8.180064281e-09 | J102: 1.199589232 | L102: 0.1966756012 | M102: 0.08360183979
A103: 940 | B103: 0.9403953757 | C103: 0.002108358508 | E103: 0.001979214713 | F103: 2.559747468e-05 | G103: 2.416367349e-05 | H103: 1.018060398e-08 | I103: 9.340084963e-09 | J103: 1.24756016 | L103: 0.2117073083 | M103: 0.09545747563
A104: 950 | B104: 0.9586611042 | C104: 0.001826572852 | E104: 0.001714207655 | F104: 2.728529444e-05 | G104: 2.567573795e-05 | H104: 1.138320837e-08 | I104: 1.038266794e-08 | J104: 1.289729071 | L104: 0.2249550909 | M104: 0.1061128754
A105: 960 | B105: 0.9739327853 | C105: 0.001527168111 | E105: 0.001433508824 | F105: 2.87227041e-05 | G105: 2.696013823e-05 | H105: 1.242838607e-08 | I105: 1.128632477e-08 | J105: 1.325489428 | L105: 0.2362082196 | M105: 0.115348423
A106: 970 | B106: 0.9860634023 | C106: 0.001213061699 | E106: 0.001139753573 | F106: 2.988539282e-05 | G106: 2.79959708e-05 | H106: 1.329340107e-08 | I106: 1.203207656e-08 | J106: 1.354317103 | L106: 0.2452835502 | M106: 0.1229701507
A107: 980 | B107: 0.9949377342 | C107: 0.0008874331879 | E107: 0.0008358009675 | F107: 3.075318445e-05 | G107: 2.876593534e-05 | H107: 1.39590821e-08 | I107: 1.260394545e-08 | J107: 1.375782003 | L107: 0.2520295079 | M107: 0.1288147613
A108: 990 | B108: 1.000474469 | C108: 0.0005536734474 | E108: 0.0005246898842 | F108: 3.131050118e-05 | G108: 2.925671824e-05 | H108: 1.441034334e-08 | I108: 1.29893721e-08 | J108: 1.389557812 | L108: 0.2563294471 | M108: 0.1327538963
A109: 1000 | B109: 1.002627756 | C109: 0.0002153286982 | E109: 0.0002095909439 | F109: 3.154672867e-05 | G109: 2.945929427e-05 | H109: 1.463659646e-08 | I109: 1.317954627e-08 | J109: 1.395429563 | L109: 0.2581042943 | M109: 0.1346975131
A110: 1010 | B110: 1.001388163 | C110: -0.000123959256 | E110: -0.0001062446892 | F110: 3.145647229e-05 | G110: 2.936913838e-05 | H110: 1.463204004e-08 | I110: 1.31696398e-08 | J110: 1.393298834 | L110: 0.2573144035 | M110: 0.1345962671
A111: 1020 | B111: 0.9967830108 | C111: -0.0004605152282 | E111: -0.0004195385019 | F111: 3.103969719e-05 | G111: 2.898634168e-05 | H111: 1.439581752e-08 | I111: 1.295893516e-08 | J111: 1.383186409 | L111: 0.2539605733 | M111: 0.1324428249
A112: 1030 | B112: 0.9888760726 | C112: -0.0007906938181 | E112: -0.000727038633 | F112: 3.030174832e-05 | G112: 2.831562864e-05 | H112: 1.393203835e-08 | I112: 1.255084552e-08 | J112: 1.365232339 | L112: 0.2480841964 | M112: 0.1282720698
A113: 1040 | B113: 0.9777666519 | C113: -0.001110942068 | E113: -0.001025573468 | F113: 2.925324991e-05 | G113: 2.736627482e-05 | H113: 1.324966262e-08 | I113: 1.19528262e-08 | J113: 1.339693388 | L113: 0.2397665397 | M113: 0.1221601966
A114: 1050 | B114: 0.9635880506 | C114: -0.001417860136 | E114: -0.001312103631 | F114: 2.790988752e-05 | G114: 2.615192776e-05 | H114: 1.236225348e-08 | I114: 1.117618089e-08 | J114: 1.306937956 | L114: 0.2291271744 | M114: 0.1142227312
A115: 1060 | B115: 0.9465054648 | C115: -0.001708258579 | E115: -0.001583771219 | F115: 2.629207904e-05 | G115: 2.469033562e-05 | H115: 1.128760635e-08 | I115: 1.023576919e-08 | J115: 1.267438606 | L115: 0.2163215993 | M115: 0.1046115418
A116: 1070 | B116: 0.9267133553 | C116: -0.001979210953 | E116: -0.001837945212 | F116: 2.442454412e-05 | G116: 2.300299136e-05 | H116: 1.004726816e-08 | I116: 9.149625488e-09 | J116: 1.22176242 | L116: 0.2015381223 | M116: 0.09351094294
A117: 1080 | B117: 0.9044323496 | C117: -0.002228100562 | E117: -0.002072262101 | F117: 2.23357844e-05 | G117: 2.111470173e-05 | H117: 8.665963082e-09 | I117: 7.93850145e-09 | J117: 1.170559456 | L117: 0.184994085 | M117: 0.08113302092
A118: 1090 | B118: 0.8799057458 | C118: -0.002452660387 | E118: -0.0022846609 | F118: 2.005748906e-05 | G118: 1.905309285e-05 | H118: 7.170944285e-09 | I118: 6.625347162e-09 | J118: 1.114549606 | L118: 0.1669315306 | M118: 0.06771232999
A119: 1100 | B119: 0.8533956918 | C119: -0.002651005397 | E119: -0.002473411882 | F119: 1.762388203e-05 | G119: 1.684806507e-05 | H119: 5.591293105e-09 | I119: 5.234747087e-09 | J119: 1.054508248 | L119: 0.1476124277 | M119: 0.05350012815
A120: 1110 | B120: 0.8251791248 | C120: -0.0028216567 | E120: -0.002637138541 | F120: 1.507102867e-05 | G120: 1.453121144e-05 | H120: 3.957188393e-09 | I120: 3.792328362e-09 | J120: 0.9912510295 | L120: 0.1273135751 | M120: 0.03875832968
A121: 1120 | B121: 0.795543553 | C121: -0.00296355718 | E121: -0.002774832456 | F121: 1.243611984e-05 | G121: 1.213521404e-05 | H121: 2.299168932e-09 | I121: 2.324159149e-09 | J121: 0.9256182225 | L121: 0.1063213132 | M121: 0.02375335622
A122: 1130 | B122: 0.7647827677 | C122: -0.003076078526 | E122: -0.002885860937 | F122: 9.756751918e-06 | G122: 9.693233254e-06 | H122: 6.474113206e-10 | I122: 8.56154551e-10 | J122: 0.8584590061 | L122: 0.08492617321 | M122: 0.008750065176
A123: 1140 | B123: 0.73319257 | C123: -0.003159019777 | E123: -0.002969967494 | F123: 7.070220293e-06 | G123: 7.238304246e-06 | H123: -9.689556845e-10 | I123: -5.864933194e-10 | J123: 0.7906160835 | L123: 0.06341758875 | M123: -0.00599407521
A124: 1150 | B124: 0.7010665927 | C124: -0.003212597721 | E124: -0.003027265343 | F124: 4.412842968e-06 | G124: 4.802754351e-06 | H124: -2.522481515e-09 | I124: -1.97984599e-09 | J124: 0.7229109758 | L124: 0.04207879221 | M124: -0.02023440911
A125: 1160 | B125: 0.6686922961 | C125: -0.003237429662 | E125: -0.003058224353 | F125: 1.819329377e-06 | G125: 2.417654087e-06 | H125: -3.987952704e-09 | I125: -3.301696761e-09 | J125: 0.6561303208 | L125: 0.02118200444 | M125: -0.03374397977
A126: 1170 | B126: 0.6363472035 | C126: -0.003234509266 | E126: -0.003063651931 | F126: -6.777925634e-07 | G126: 1.123128776e-07 | H126: -5.342867456e-09 | I126: -4.531985418e-09 | J126: 0.5910134522 | L126: 0.0009840166486 | M126: -0.04631776791
A127: 1180 | B127: 0.6042954403 | C127: -0.003205176317 | E127: -0.003044668502 | F127: -3.048680297e-06 | G127: -2.086170983e-06 | H127: -6.567816505e-09 | I127: -5.653141172e-09 | J127: 0.5282414911 | L127: -0.01827775249 | M127: -0.05777619666
A128: 1190 | B128: 0.5727846271 | C128: -0.003151081315 | E128: -0.003002678325 | F128: -5.266603051e-06 | G128: -4.153298514e-06 | H128: -7.64676456e-09 | I128: -6.650348222e-09 | J128: 0.4684281236 | L128: -0.03638865792 | M128: -0.06796784567
A129: 1200 | B129: 0.5420431677 | C129: -0.003074145946 | E129: -0.002939336441 | F129: -7.308285047e-06 | G129: -6.067490753e-06 | H129: -8.567230322e-09 | I129: -7.511731089e-09 | J129: 0.4121121845 | L129: -0.05315963799 | M129: -0.07677134524
A130: 1210 | B130: 0.5122779631 | C130: -0.002976520461 | E130: -0.002856512624 | F130: -9.154162312e-06 | G130: -7.810338386e-06 | H130: -9.320366577e-09 | I130: -8.228459563e-09 | J130: 0.3597521126 | L130: -0.06842940155 | M130: -0.08409644894
A131: 1220 | B131: 0.4836725727 | C131: -0.002860539035 | E131: -0.002756253195 | F131: -1.078855241e-05 | G131: -9.366778688e-06 | H131: -9.900945067e-09 | I131: -8.794775631e-09 | J131: 0.3117222858 | L131: -0.08206597824 | M131: -0.08988430873
A132: 1230 | B132: 0.4563858314 | C132: -0.002728674134 | E132: -0.002640741576 | F132: -1.219973872e-05 | G132: -1.072520009e-05 | H132: -1.030725365e-08 | I132: -9.207946994e-09 | J132: 0.2683111968 | L132: -0.09396763459 | M132: -0.09410700001
A133: 1240 | B133: 0.4305509226 | C133: -0.002583490883 | E133: -0.00251225842 | F133: -1.337997305e-05 | G133: -1.187747641e-05 | H133: -1.054091556e-08 | I133: -9.468153703e-09 | J133: 0.2297213856 | L133: -0.1040631741 | M133: -0.09676636293
A134: 1250 | B134: 0.4062748992 | C134: -0.002427602333 | E134: -0.002373142115 | F134: -1.432540199e-05 | G134: -1.281893443e-05 | H134: -1.060664231e-08 | I134: -9.578315978e-09 | J134: 0.1960710039 | L134: -0.1123116526 | M134: -0.09789224269
A135: 1260 | B135: 0.3836386346 | C135: -0.002263626466 | E135: -0.002225750381 | F135: -1.503592425e-05 | G135: -1.35482596e-05 | H135: -1.051193284e-08 | I135: -9.543872373e-09 | J135: 0.1673968591 | L135: -0.1187015531 | M135: -0.09754022239
A136: 1270 | B136: 0.3626971783 | C136: -0.002094145624 | E136: -0.00207242363 | F136: -1.551498691e-05 | G136: -1.406734611e-05 | H136: -1.026673229e-08 | I136: -9.372518147e-09 | J136: 0.1436587581 | L136: -0.1232494712 | M136: -0.09578894904
A137: 1280 | B137: 0.3434804884 | C137: -0.001921668993 | E137: -0.001915450642 | F137: -1.576932955e-05 | G137: -1.438109798e-05 | H137: -9.883063377e-09 | I137: -9.073913947e-09 | J137: 0.1247449592 | L137: =G137*$E$4 -> -0.1259983729 | M137: =I137*$E$5 -> -0.09273715633
A138: 1290 | B138: =EXP(-1*(($A138-1000)/(0.60056*$B$5))^2)+$B$4*EXP(-1*(($A138-1500)/(0.60056*$B$5))^2)+$B$6*(RAND()-RAND()+RAND()-RAND()) -> 0.3259945024 | C138: -0.001748598596 | E138: -0.001757037039 | F138: -1.580868564e-05 | G138: -1.449718858e-05 | H138: -9.374643227e-09 | I138: -8.659374817e-09 | J138: 0.1104785286 | L138: -0.1270154876 | M138: -0.08850048621
A139: 1300 | B139: 0.3102225108 | C139: =(B139-B138)/(A139-A138) -> -0.001577199166 | E139: -0.001599276929 | F139: -1.564545061e-05 | G139: -1.442578632e-05 | H139: -8.756497218e-09 | I139: -8.141549044e-09 | J139: 0.1006243995 | L139: -0.1263899047 | M139: -0.08320820661
A140: 1310 | B140: 0.2961267892 | C140: -0.001409572161 | E140: -0.001444128027 | F140: -1.529432573e-05 | G140: -1.417925411e-05 | H140: -8.044580316e-09 | I140: -7.534095609e-09 | J140: 0.09489693372 | L140: -0.1242299405 | M140: -0.07699991496
A141: 1320 | B141: 0.2836504487 | C141: -0.001247634044 | E141: -0.001293390415 | F141: -1.477194683e-05 | G141: -1.377183029e-05 | H141: -7.255414653e-09 | I141: -6.851368042e-09 | J141: 0.09296779906 | L141: -0.1206603425 | M141: -0.07002230713
A142: 1330 | B142: 0.2727194598 | C142: -0.001093098892 | E142: -0.00114868909 | F142: -1.409650585e-05 | G142: -1.321929818e-05 | H142: -6.405750457e-09 | I142: -6.108111312e-09 | J142: 0.09447398569 | L142: -0.1158193946 | M142: -0.06242607953
A143: 1340 | B143: 0.2632448071 | C143: -0.0009474652752 | E143: -0.001011460298 | F143: -1.328737281e-05 | G143: -1.253865106e-05 | H143: -5.512255667e-09 | I143: -5.319177168e-09 | J143: 0.09902580573 | L143: -0.1098559814 | M143: -0.05436301992
A144: 1350 | B144: 0.2551247338 | C144: -0.0008120073216 | E144: -0.0008829416338 | F144: -1.236472475e-05 | G144: -1.174775883e-05 | H144: -4.591237822e-09 | I144: -4.499262105e-09 | J144: 0.1062147365 | L144: -0.1029266681 | M144: -0.04598332932
A145: 1360 | B145: 0.2482470362 | C145: -0.0006877697635 | E145: -0.000764165803 | F145: -1.134918723e-05 | G145: -1.086504185e-05 | H145: -3.658400219e-09 | I145: -3.662670892e-09 | J145: 0.1156209885 | L145: -0.09519284243 | M145: -0.03743320524
A146: 1370 | B146: 0.2424913685 | C146: -0.0005755667678 | E146: -0.0006559578892 | F146: -1.026149338e-05 | G146: -9.909156854e-06 | H146: -2.728632922e-09 | I146: -2.823107496e-09 | J146: 0.1268207001 | L146: -0.08681796356 | M146: -0.02885270488
A147: 1380 | B147: 0.2377315257 | C147: -0.0004759842796 | E147: -0.0005589359354 | F147: -9.122164212e-06 | G147: -8.898699204e-06 | H147: -1.81583797e-09 | I147: -1.993494209e-09 | J147: 0.1393926767 | L147: -0.07796495247 | M147: -0.02037389656
A148: 1390 | B148: 0.2338376698 | C148: -0.0003893855959 | E148: -0.000473514605 | F148: =-(E149-E147)/(A149-A147) -> -7.95121341e-06 | G148: -7.851924794e-06 | H148: -9.327872686e-10 | I148: -1.185818974e-09 | J148: 0.1529246142 | L148: -0.06879375619 | M148: -0.01211929937
A149: 1400 | B149: 0.2306784711 | C149: -0.0003159198654 | E149: -0.0003999116672 | F149: -6.767878936e-06 | G149: -6.786494639e-06 | H149: -9.101092062e-11 | I149: -4.110101915e-10 | J149: 0.1670187578 | L149: -0.05945910968 | M149: -0.004200603688
A150: 1410 | B150: 0.2281231392 | C150: -0.0002555331957 | E150: -0.0003381570263 | F150: -5.590383193e-06 | G150: -5.719244265e-06 | H150: 6.992865948e-10 | I150: 3.211621799e-10 | J150: 0.1812969633 | L150: -0.05010851554 | M150: 0.003282339623
A151: 1420 | B151: 0.2260433187 | C151: -0.0002079820469 | E151: -0.0002881040034 | F151: -4.435722908e-06 | G151: -4.665979624e-06 | H151: 1.429285168e-09 | I151: 1.002160759e-09 | J151: 0.1954051398 | L151: -0.04088045582 | M151: 0.01024227688
A152: 1430 | B152: 0.2243148328 | C152: -0.0001728485857 | E152: -0.0002494425681 | F152: -3.319489459e-06 | G152: -3.641300686e-06 | H152: 2.091585439e-09 | I152: 1.624731832e-09 | J152: 0.20901706 | L152: -0.03190284652 | M152: 0.01660507371
A153: 1440 | B153: 0.2228192561 | C153: -0.0001495576766 | E153: -0.0002217142142 | F153: -2.255719969e-06 | G153: -2.658453456e-06 | H153: 2.680225309e-09 | I153: 2.182935149e-09 | J153: 0.2218375347 | L153: -0.02329174103 | M153: 0.02231001962
A154: 1450 | B154: 0.2214453042 | C154: -0.0001373951873 | E154: =(C146*$L$6+C147*$M$6+C148*$N$6+C149*$O$6+C150*$P$6+C151*$Q$6+C152*$R$6+C153*$S$6+C154*$T$6+C155*$U$6+C156*$V$6+C157*$W$6+C158*$X$6+C159*$Y$6+C160*$Z$6+C161*$AA$6+C162*$AB$6)/SUM($L$6:$AB$6) -> -0.0002043281687 | F154: -1.256779184e-06 | G154: -1.729210733e-06 | H154: 3.190678741e-09 | I154: 2.672154149e-09 | J154: 0.2336049513 | L154: -0.0151502854 | M154: 0.02730993246
A155: 1460 | B155: 0.2200900313 | C155: -0.0001355272925 | E155: -0.0001965786305 | F155: -3.33271872e-07 | G155: -8.637815844e-07 | H155: 3.61983863e-09 | I155: 3.089088206e-09 | J155: =B155+$E$4*G155+$E$5*I155 -> 0.2440931853 | L155: -0.007567925226 | M155: 0.0315710792
A156: 1470 | B156: 0.2186598267 | C156: -0.0001430204619 | E156: -0.0001976627313 | F156: 5.060147317e-07 | G156: =(F148*$L$6+F149*$M$6+F150*$N$6+F151*$O$6+F152*$P$6+F153*$Q$6+F154*$R$6+F155*$S$6+F156*$T$6+F157*$U$6+F158*$V$6+F159*$W$6+F160*$X$6+F161*$Y$6+F162*$Z$6+F163*$AA$6+F164*$AB$6)/SUM($L$6:$AB$6) -> -7.074920859e-08 | H156: =-(G157-2*G156+G155)/(A157-A155) -> 3.965985079e-09 | I156: =(H148*$L$6+H149*$M$6+H150*$N$6+H151*$O$6+H152*$P$6+H153*$Q$6+H154*$R$6+H155*$S$6+H156*$T$6+H157*$U$6+H158*$V$6+H159*$W$6+H160*$X$6+H161*$Y$6+H162*$Z$6+H163*$AA$6+H164*$AB$6)/SUM($L$6:$AB$6) -> 3.43172833e-09 | J156: 0.253112893 | L156: -0.0006198612358 | M156: 0.03507292757
A157: 1480 | B157: 0.2170712084 | C157: -0.0001588618258 | E157: -0.0002066989251 | F157: 1.254139163e-06 | G157: 6.429634657e-07 | H157: 4.228740066e-09 | I157: 3.699317598e-09 | J157: 0.2605122022 | L157: 0.005633252108 | M157: 0.03780774167
A158: 1490 | B158: 0.2152514122 | C158: -0.000181979618 | E158: -0.0002227455146 | F158: 1.906005548e-06 | G158: 1.272101339e-06 | H158: 4.409009157e-09 | I158: 3.892297447e-09 | J158: 0.2661768181 | L158: 0.01114537284 | M158: 0.03978003307
A159: 1500 | B159: 0.2131387782 | C159: -0.0002112634034 | E159: -0.0002448190361 | F159: 2.458336158e-06 | G159: 1.813059028e-06 | H159: 4.508910691e-09 | I159: 4.012240824e-09 | J159: 0.2700295686 | L159: 0.01588491281 | M159: 0.04100587759
A160: 1510 | B160: 0.2106829401 | C160: -0.0002455838075 | E160: -0.0002719122377 | F160: 2.909618059e-06 | G160: 2.263838504e-06 | H160: 4.531692755e-09 | I160: 4.061773164e-09 | J160: 0.2720294143 | L160: 0.0198343665 | M160: 0.04151210769
A161: 1520 | B161: 0.2078448253 | C161: -0.0002838114779 | E161: -0.0003030113973 | F161: 3.260025483e-06 | G161: 2.623984125e-06 | H161: 4.481638297e-09 | I161: 4.044482143e-09 | J161: 0.2721699573 | L161: 0.02298974186 | M161: 0.0413353901
A162: 1530 | B162: 0.2045964751 | C162: -0.0003248350233 | E162: -0.0003371127474 | F162: 3.511319807e-06 | G162: 2.89449698e-06 | H162: 4.363958815e-09 | I162: 3.964817222e-09 | J162: 0.2704774841 | L162: 0.02535980983 | M162: 0.0405211992
A163: 1540 | B163: 0.2009206982 | C163: -0.0003675776923 | E163: -0.0003732377934 | F163: 3.666729298e-06 | G163: 3.077730659e-06 | H163: 4.184677319e-09 | I163: 3.827980138e-09 | J163: 0.267008587 | L163: 0.0269651911 | M163: 0.03912269772
A164: 1550 | B164: 0.1968105724 | C164: -0.0004110125808 | E164: -0.0004104473333 | F164: 3.730811053e-06 | G164: 3.177270791e-06 | H164: 3.950501557e-09 | I164: 3.639807619e-09 | J164: 0.2618474113 | L164: 0.02783730077 | M164: 0.03719953817
A165: 1560 | B165: 0.1922688106 | C165: -0.0004541761787 | E165: -0.0004478540145 | F165: 3.709297848e-06 | G165: 3.197800892e-06 | H165: 3.668688865e-09 | I165: 3.406647871e-09 | J165: 0.255102584 | L165: 0.02801717295 | M165: 0.03481660043
A166: 1570 | B166: 0.1873070096 | C166: -0.0004961800996 | E166: -0.0004846332903 | F166: 3.608932829e-06 | G166: 3.144957216e-06 | H166: 3.346904418e-09 | I166: 3.135232524e-09 | J166: 0.2469038817 | L166: 0.02755418902 | M166: 0.03204268306
A167: 1580 | B167: 0.1819448009 | C167: -0.0005362208711 | E167: -0.0005200326711 | F167: 3.437295197e-06 | G167: 3.025175452e-06 | H167: 2.993074997e-09 | I167: 2.832545988e-09 | J167: 0.2373987035 | L167: 0.02650473456 | M167: 0.02894916809
A168: 1590 | B168: 0.1762089239 | C168: -0.0005735876993 | E168: -0.0005533791942 | F168: 3.20262019e-06 | G168: 2.845532187e-06 | H168: 2.615240802e-09 | I168: 2.505694339e-09 | J168: 0.2267484152 | L168: 0.0249308103 | M168: 0.02560868099
A169: 1600 | B169: 0.1701322423 | C169: -0.0006076681591 | E169: -0.0005840850749 | F169: 2.913616763e-06 | G169: 2.613584107e-06 | H169: 2.221408051e-09 | I169: 2.16177599e-09 | J169: 0.2151246345 | L169: 0.02289862327 | M169: 0.02209376892
A170: 1610 | B170: 0.1637527242 | C170: -0.0006379518057 | E170: -0.0006116515295 | F170: 2.579286385e-06 | G170: 2.337207865e-06 | H170: 1.819405368e-09 | I170: 1.807756501e-09 | J170: 0.2027055294 | L170: 0.02047718391 | M170: 0.01847562124
A171: 1620 | B171: 0.1571124068 | C171: -0.0006640317398 | E171: -0.0006356708025 | F171: 2.208746304e-06 | G171: 2.024443516e-06 | H171: 1.41674698e-09 | I171: 1.450349891e-09 | J171: 0.1896721976 | L171: 0.01773693423 | M171: 0.01482285653
A172: 1630 | B172: 0.1502563648 | C172: -0.0006856042021 | E172: -0.0006558264556 | F172: 1.811060522e-06 | G172: 1.683344228e-06 | H172: 1.020505757e-09 | I172: 1.095908753e-09 | J172: 0.1762051955 | L172: 0.01474843117 | M172: 0.01120039952
A173: 1640 | B173: 0.1432317017 | C173: -0.0007024663071 | E173: -0.000671892013 | F173: 1.395081455e-06 | G173: 1.321834824e-06 | H173: 6.371989331e-10 | I173: 7.503253281e-10 | J173: 0.162481279 | L173: 0.01158110718 | M173: 0.007668470041
A174: 1650 | B174: 0.1360865811 | C174: -0.000714512066 | E174: -0.0006837280847 | F174: 9.69305002e-07 | G174: 9.475814419e-07 | H174: 2.726890775e-10 | I174: 4.189454637e-10 | J174: 0.148670413 | L174: 0.008302128254 | M174: 0.004281703705
A175: 1660 | B175: 0.1288693124 | C175: -0.0007217268729 | E175: -0.000691278113 | F175: 5.41741339e-07 | G175: 5.678742781e-07 | H175: -6.789751091e-11 | I175: 1.064970937e-10 | J175: 0.1349330999 | L175: 0.004975366634 | M175: 0.001088420905
A176: 1670 | B176: 0.1216275057 | C176: -0.0007241806607 | E176: -0.0006945629115 | F176: 1.198033505e-07 | G176: 1.895250645e-07 | H176: -3.802332999e-10 | I176: -1.829655059e-10 | J176: 0.1214180654 | L176: 0.001660502542 | M176: -0.001869942874
A177: 1680 | B177: 0.1144073063 | C177: -0.0007220199468 | E177: -0.00069367418 | F177: -2.897858777e-07 | G177: -1.812194831e-07 | H177: -6.608317863e-10 | I177: -4.461008301e-10 | J177: 0.1082603354 | L177: -0.001587734124 | M177: -0.004559236804
A178: 1690 | B178: 0.1072527162 | C178: -0.0007154590077 | E178: -0.0006887671939 | F178: -6.810655759e-07 | G178: -5.38747395e-07 | H178: -9.070690013e-10 | I178: -6.803022304e-10 | J178: 0.09557972105 | L178: -0.004720174723 | M178: -0.006952820432
A179: 1700 | B179: 0.100205012 | C179: -0.0007047704233 | E179: -0.0006800528685 | F179: -1.04888941e-06 | G179: -8.781339269e-07 | H179: -1.117184365e-09 | I179: -8.837030377e-10 | J179: 0.08347972427 | L179: -0.00769367166 | M179: -0.009031616042
A180: 1710 | B180: 0.09330225961 | C180: -0.0006902752364 | E180: -0.0006677894057 | F180: -1.388957306e-06 | G180: -1.195176771e-06 | H180: -1.290261612e-09 | I180: -1.055165252e-09 | J180: 0.07204685966 | L180: -0.01047140689 | M180: -0.01078399305
A181: 1720 | B181: 0.08657892996 | C181: -0.000672332965 | E181: -0.0006522737224 | F181: -1.69782758e-06 | G181: -1.486414384e-06 | H181: -1.426191089e-09 | I181: -1.194252767e-09 | J181: 0.0613503831 | L181: -0.01302305249 | M181: -0.01220549437
A182: 1730 | B182: 0.08006561304 | C182: -0.0006513316918 | E182: -0.0006338328541 | F182: -1.972910414e-06 | G182: -1.749128174e-06 | H182: -1.525615256e-09 | I182: -1.301190498e-09 | J182: 0.05144240455 | L182: -0.01532478982 | M182: -0.01329841866
A183: 1740 | B183: 0.07378882863 | C183: -0.0006276784406 | E183: -0.0006128155141 | F183: -2.212444149e-06 | G183: -1.98132966e-06 | H183: -1.589859667e-09 | I183: -1.376811131e-09 | J183: 0.04235835544 | L183: -0.01735919703 | M183: -0.01407127617
A184: 1750 | B184: 0.06777092839 | C184: -0.0006017900248 | E184: -0.0005895839711 | F184: -2.415456184e-06 | G184: -2.181733952e-06 | H184: -1.620852039e-09 | I184: -1.422491503e-09 | J184: 0.03411777328 | L184: -0.0191150167 | M184: -0.01453813841
A185: 1760 | B185: 0.06203008308 | C185: -0.0005740845303 | E185: -0.0005645063905 | F185: -2.58171055e-06 | G185: -2.349721203e-06 | H185: -1.62103229e-09 | I185: -1.440080798e-09 | J185: 0.02672536056 | L185: -0.02058681811 | M185: -0.01471790441
A186: 1770 | B186: 0.05658034744 | C186: -0.0005449735645 | E186: -0.0005379497601 | F186: -2.711644451e-06 | G186: -2.485287809e-06 | H186: -1.593256531e-09 | I186: -1.431822911e-09 | J186: 0.02017227055 | L186: -0.02177456968 | M186: -0.01463350721
A187: 1780 | B187: 0.05143179369 | C187: -0.0005148553751 | E187: -0.0005102735014 | F187: -2.806296133e-06 | G187: -2.588989284e-06 | H187: -1.540698032e-09 | I187: -1.400275341e-09 | J187: 0.01443757025 | L187: -0.02268313849 | M187: -0.01431108494
A188: 1790 | B188: 0.04659070457 | C188: -0.0004841089111 | E188: -0.0004818238375 | F188: -2.867226532e-06 | G188: -2.661876798e-06 | H188: -1.466748088e-09 | I188: -1.348226962e-09 | J188: 0.009489829892 | L188: -0.02332173425 | M188: -0.01377914043
A189: 1800 | B189: 0.04205981587 | C189: -0.0004530888705 | E189: -0.0004529289708 | F189: -2.896437105e-06 | G189: -2.70542935e-06 | H189: -1.374919533e-09 | I189: -1.278616886e-09 | J189: 0.005288788838 | L189: -0.02370331505 | M189: -0.01306771199
A190: 1810 | B190: 0.0378385984 | C190: -0.0004221217471 | E190: -0.0004238950954 | F190: -2.896286118e-06 | G190: -2.721483512e-06 | H190: -1.268755361e-09 | I190: -1.194456483e-09 | J190: 0.001787050238 | L190: -0.02384397178 | M190: -0.01220757638
A191: 1820 | B191: 0.03392356974 | C191: -0.0003915028662 | E191: -0.0003950032484 | F191: -2.869405568e-06 | G191: -2.712162567e-06 | H191: -1.151744612e-09 | I191: -1.098756353e-09 | J191: -0.001068240164 | L191: -0.02376230736 | M191: -0.01122950254
A192: 1830 | B192: 0.030308626 | C192: -0.0003614943739 | E192: -0.000366506984 | F192: -2.818620641e-06 | G192: -2.679806729e-06 | H192: -1.027247245e-09 | I192: -9.944598013e-10 | J192: -0.00333377093 | L192: -0.02347882533 | M192: -0.0101635716
A193: 1840 | B193: 0.02698538477 | C193: -0.0003323241223 | E193: -0.0003386308356 | F193: -2.746873404e-06 | G193: -2.626905947e-06 | H193: -8.984293354e-10 | I193: -8.84384033e-10 | J193: -0.005068532244 | L193: -0.02301534107 | M193: -0.009038575945
A194: 1850 | B194: 0.02394353097 | C194: -0.0003041853804 | E194: -0.0003115695159 | F194: -2.657152142e-06 | G194: -2.556036577e-06 | H194: -7.68209499e-10 | I194: -7.711699679e-10 | J194: -0.006332402386 | L194: -0.02239442706 | M194: -0.007881506292
A195: 1860 | B195: 0.02117115815 | C195: -0.0002772372821 | E195: -0.0002854877928 | F195: -2.552427445e-06 | G195: -2.469803018e-06 | H195: -6.392169801e-10 | I195: -6.572412439e-10 | J195: -0.00718487597 | L195: -0.02163890143 | M195: -0.006717132688
A196: 1870 | B196: 0.01865509896 | C196: -0.0002516059189 | E196: -0.000260520967 | F196: -2.435595878e-06 | G196: -2.370785119e-06 | H196: -5.13761484e-10 | I196: -5.447726522e-10 | J196: -0.007683950202 | L196: -0.02077136725 | M196: -0.005567681919
A197: 1880 | B197: 0.01638123921 | C197: -0.0002273859748 | E197: -0.0002367758752 | F197: -2.309431752e-06 | G197: -2.261491991e-06 | H197: -3.938144231e-10 | I197: -4.356679464e-10 | J197: -0.00788517929 | L197: -0.01981380779 | M197: -0.004452610713
A198: 1890 | B198: 0.0143348112 | C198: -0.0002046428015 | E198: -0.000214332332 | F198: -2.176547261e-06 | G198: -2.144322574e-06 | H198: -2.810009353e-10 | I198: -3.31546692e-10 | J198: -0.007840901266 | L198: -0.01878724112 | M198: -0.003388471347
A199: 1900 | B199: 0.01250066289 | C199: -0.0001834148309 | E199: -0.00019324493 | F199: -2.039360971e-06 | G199: -2.021533138e-06 | H199: -1.766017562e-10 | I199: -2.337395869e-10 | J199: -0.007599636202 | L199: -0.01771143528 | M199: -0.002388863807
A200: 1910 | B200: 0.01086350059 | C200: -0.0001637162297 | E200: -0.0001735451126 | F200: -1.900074451e-06 | G200: -1.895211668e-06 | H200: -8.156381497e-11 | I200: -1.432914833e-10 | J200: -0.007205650016 | L200: -0.01660468392 | M200: -0.001464466686
... 64 more rows
